[Event "*** Titled Tuesday Blitz"]
[Site "Chess.com"]
[Date "2020.10.20"]
[Round "11"]
[White "pedromartinez91"]
[Black "NikolaGry"]
[Result "0-1"]
[WhiteElo "2478"]
[BlackElo "2700"]
[TimeControl "180+1"]
[EndTime "12:09:07 PDT"]
[Termination "NikolaGry won by checkmate"]

1. b3 {[%clk 0:03:00.9]} 1... f5 {[%clk 0:02:55.2]} 2. Bb2 {[%clk 0:03:01.8]}
2... d6 {[%clk 0:02:55.1]} 3. d4 {[%clk 0:02:52.9]} 3... Nf6 {[%clk 0:02:53.3]}
4. Nd2 {[%clk 0:02:53.4]} 4... g6 {[%clk 0:02:48.5]} 5. Ngf3 {[%clk 0:02:44.5]}
5... Bg7 {[%clk 0:02:47.6]} 6. e3 {[%clk 0:02:36.3]} 6... Nc6 {[%clk 0:02:45.8]}
7. Bc4 {[%clk 0:02:35.9]} 7... e6 {[%clk 0:02:41.6]} 8. O-O {[%clk 0:02:34.1]}
8... O-O {[%clk 0:02:39.4]} 9. Re1 {[%clk 0:02:34.7]} 9... Kh8 {[%clk
0:02:32.1]} 10. e4 {[%clk 0:02:33.9]} 10... fxe4 {[%clk 0:02:31]} 11. Ng5 {[%clk
0:02:25.6]} 11... d5 {[%clk 0:02:28.3]} 12. Bf1 {[%clk 0:02:25.2]} 12... Nh5
{[%clk 0:02:10.8]} 13. h4 {[%clk 0:02:16.7]} 13... Nxd4 {[%clk 0:02:01]} 14. Ba3
{[%clk 0:02:13.9]} 14... Rf5 {[%clk 0:01:43.3]} 15. Ndxe4 {[%clk 0:02:13.3]}
15... dxe4 {[%clk 0:01:34.5]} 16. c3 {[%clk 0:02:13.7]} 16... Nc6 {[%clk
0:01:21.5]} 17. Qxd8+ {[%clk 0:02:06.7]} 17... Nxd8 {[%clk 0:01:21.4]} 18. g4
{[%clk 0:02:07.3]} 18... Rxg5 {[%clk 0:01:10.7]} 19. hxg5 {[%clk 0:02:08.2]}
19... Nf4 {[%clk 0:01:09.2]} 20. Rad1 {[%clk 0:02:00.9]} 20... Nf7 {[%clk
0:01:06.8]} 21. Rxe4 {[%clk 0:01:52.5]} 21... e5 {[%clk 0:00:54.4]} 22. Bc4
{[%clk 0:01:45.6]} 22... Bxg4 {[%clk 0:00:49.6]} 23. Rd2 {[%clk 0:01:36.3]}
23... Nxg5 {[%clk 0:00:47.1]} 24. Re3 {[%clk 0:01:28.3]} 24... Nf3+ {[%clk
0:00:45.3]} 25. Rxf3 {[%clk 0:01:28.5]} 25... Bxf3 {[%clk 0:00:45.4]} 26. Rd7
{[%clk 0:01:29.4]} 26... e4 {[%clk 0:00:24.4]} 27. Be7 {[%clk 0:01:14.1]} 27...
a6 {[%clk 0:00:19.4]} 28. Rxc7 {[%clk 0:01:13.8]} 28... b5 {[%clk 0:00:19.1]}
29. Bf7 {[%clk 0:01:14.2]} 29... Ne2+ {[%clk 0:00:18.3]} 30. Kf1 {[%clk
0:01:06.9]} 30... Nxc3 {[%clk 0:00:18.3]} 31. Ke1 {[%clk 0:01:03.3]} 31... a5
{[%clk 0:00:15.8]} 32. Kd2 {[%clk 0:01:03.3]} 32... a4 {[%clk 0:00:13.9]} 33.
Rxc3 {[%clk 0:01:00.9]} 33... Bxc3+ {[%clk 0:00:13.2]} 34. Kxc3 {[%clk
0:01:01.8]} 34... Kg7 {[%clk 0:00:12.9]} 35. Bd5 {[%clk 0:01:01.2]} 35... Rc8+
{[%clk 0:00:11.4]} 36. Kd4 {[%clk 0:01:01.3]} 36... e3 {[%clk 0:00:11.1]} 37.
Bxf3 {[%clk 0:00:52.7]} 37... exf2 {[%clk 0:00:10.6]} 38. Bg2 {[%clk 0:00:52.2]}
38... axb3 {[%clk 0:00:10.7]} 39. axb3 {[%clk 0:00:51.8]} 39... Rc1 {[%clk
0:00:10.5]} 40. Bd6 {[%clk 0:00:40.8]} 40... f1=Q {[%clk 0:00:10.2]} 41. Be5+
{[%clk 0:00:41]} 41... Kf7 {[%clk 0:00:09.6]} 42. Bd5+ {[%clk 0:00:41.1]} 42...
Ke7 {[%clk 0:00:09.1]} 43. Bd6+ {[%clk 0:00:07.6]} 43... Kxd6 {[%clk 0:00:08.2]}
44. b4 {[%clk 0:00:08.5]} 44... Rd1+ {[%clk 0:00:07]} 45. Kc3 {[%clk 0:00:08.3]}
45... Qd3+ {[%clk 0:00:07]} 46. Kb2 {[%clk 0:00:06.4]} 46... Rd2+ {[%clk
0:00:07.3]} 47. Kc1 {[%clk 0:00:06]} 47... Qc2# {[%clk 0:00:05.7]} 0-1

[Event "*** Titled Tuesday Blitz"]
[Site "Chess.com"]
[Date "2020.10.20"]
[Round "11"]
[White "chessknight02"]
[Black "Koalaskakistis"]
[Result "1-0"]
[WhiteElo "2357"]
[BlackElo "2453"]
[TimeControl "180+1"]
[EndTime "12:09:07 PDT"]
[Termination "chessknight02 won on time"]

1. d4 {[%clk 0:03:00.9]} 1... d5 {[%clk 0:01:59.6]} 2. c4 {[%clk 0:02:53.9]}
2... e6 {[%clk 0:02:00.5]} 3. Nf3 {[%clk 0:02:51.4]} 3... Nf6 {[%clk 0:01:59.8]}
4. g3 {[%clk 0:02:51.6]} 4... Be7 {[%clk 0:01:58.6]} 5. Bg2 {[%clk 0:02:51.9]}
5... O-O {[%clk 0:01:59.5]} 6. O-O {[%clk 0:02:52.2]} 6... dxc4 {[%clk
0:01:59.7]} 7. Qc2 {[%clk 0:02:52.2]} 7... a6 {[%clk 0:01:58.6]} 8. a4 {[%clk
0:02:52.6]} 8... Bd7 {[%clk 0:01:56.9]} 9. Qxc4 {[%clk 0:02:48.7]} 9... Bc6
{[%clk 0:01:56.5]} 10. Bg5 {[%clk 0:02:48.9]} 10... Nbd7 {[%clk 0:01:55.9]} 11.
Nc3 {[%clk 0:02:47.5]} 11... h6 {[%clk 0:01:55.1]} 12. Bxf6 {[%clk 0:02:46.5]}
12... Nxf6 {[%clk 0:01:53.2]} 13. Rfd1 {[%clk 0:02:46.6]} 13... a5 {[%clk
0:01:50.7]} 14. e3 {[%clk 0:02:40]} 14... Bb4 {[%clk 0:01:50.1]} 15. Rac1 {[%clk
0:02:34.5]} 15... Ne4 {[%clk 0:01:48.7]} 16. Nxe4 {[%clk 0:02:30.7]} 16... Bxe4
{[%clk 0:01:49.6]} 17. Qxc7 {[%clk 0:02:29.8]} 17... Qe8 {[%clk 0:01:49.7]} 18.
Ne5 {[%clk 0:02:16.8]} 18... Bxg2 {[%clk 0:01:45.2]} 19. Kxg2 {[%clk 0:02:16.8]}
19... Qxa4 {[%clk 0:01:46.1]} 20. Qxb7 {[%clk 0:02:11.7]} 20... Qb3 {[%clk
0:01:41.2]} 21. Nd7 {[%clk 0:02:01.4]} 21... Rfd8 {[%clk 0:01:33.7]} 22. Ne5
{[%clk 0:01:29.9]} 22... Qd5+ {[%clk 0:01:17.8]} 23. Qxd5 {[%clk 0:01:28.9]}
23... Rxd5 {[%clk 0:01:18.6]} 24. Rc7 {[%clk 0:01:28.3]} 24... Bd6 {[%clk
0:01:11.7]} 25. Rd7 {[%clk 0:01:18.5]} 25... Bxe5 {[%clk 0:01:07.4]} 26. Rxd5
{[%clk 0:01:18.3]} 26... exd5 {[%clk 0:01:07.7]} 27. dxe5 {[%clk 0:01:18.9]}
27... Rd8 {[%clk 0:01:02.9]} 28. Ra1 {[%clk 0:01:17.7]} 28... Re8 {[%clk
0:00:59.9]} 29. f4 {[%clk 0:01:14.5]} 29... Rb8 {[%clk 0:00:59.7]} 30. Ra2
{[%clk 0:01:09.5]} 30... Kf8 {[%clk 0:00:49.4]} 31. Kf3 {[%clk 0:01:09.6]} 31...
a4 {[%clk 0:00:49.3]} 32. Ke2 {[%clk 0:01:08.6]} 32... Rb3 {[%clk 0:00:37.1]}
33. Rxa4 {[%clk 0:01:04.9]} 33... Rxb2+ {[%clk 0:00:36.6]} 34. Kd3 {[%clk
0:01:05.5]} 34... Rxh2 {[%clk 0:00:35.2]} 35. f5 {[%clk 0:00:59.7]} 35... h5
{[%clk 0:00:29.4]} 36. Kd4 {[%clk 0:00:44.5]} 36... Rd2+ {[%clk 0:00:25.2]} 37.
Kc5 {[%clk 0:00:43.4]} 37... Rd3 {[%clk 0:00:24.7]} 38. Kd6 {[%clk 0:00:40.6]}
38... g6 {[%clk 0:00:24]} 39. f6 {[%clk 0:00:37.4]} 39... Kg8 {[%clk 0:00:23.6]}
40. Ra8+ {[%clk 0:00:37.4]} 40... Kh7 {[%clk 0:00:23.4]} 41. Rf8 {[%clk
0:00:34.8]} 41... Rxe3 {[%clk 0:00:23.2]} 42. Rxf7+ {[%clk 0:00:35.2]} 42... Kh6
{[%clk 0:00:21.7]} 43. e6 {[%clk 0:00:34.9]} 43... d4 {[%clk 0:00:21.5]} 44. Rd7
{[%clk 0:00:25.3]} 44... d3 {[%clk 0:00:20.4]} 45. Ke7 {[%clk 0:00:25.7]} 45...
Rf3 {[%clk 0:00:14.6]} 46. f7 {[%clk 0:00:25.9]} 46... Kg7 {[%clk 0:00:14.5]}
47. Rd8 {[%clk 0:00:26.4]} 47... g5 {[%clk 0:00:13.6]} 48. f8=Q+ {[%clk
0:00:23.9]} 48... Rxf8 {[%clk 0:00:12.7]} 49. Rxf8 {[%clk 0:00:24.5]} 49... d2
{[%clk 0:00:13.6]} 50. Rd8 {[%clk 0:00:25.2]} 50... h4 {[%clk 0:00:14.5]} 51.
Rxd2 {[%clk 0:00:24.6]} 51... h3 {[%clk 0:00:13.6]} 52. g4 {[%clk 0:00:25.1]}
1-0

[Event "*** Titled Tuesday Blitz"]
[Site "Chess.com"]
[Date "2020.10.20"]
[Round "11"]
[White "teacher4chess"]
[Black "brunomorado"]
[Result "0-1"]
[WhiteElo "2068"]
[BlackElo "2312"]
[TimeControl "180+1"]
[EndTime "12:09:08 PDT"]
[Termination "brunomorado won by resignation"]

1. d4 {[%clk 0:03:00.2]} 1... d5 {[%clk 0:03:00.2]} 2. c4 {[%clk 0:02:58.8]}
2... c6 {[%clk 0:03:00.3]} 3. Nf3 {[%clk 0:02:58.6]} 3... Nf6 {[%clk 0:03:00.4]}
4. e3 {[%clk 0:02:58.5]} 4... e6 {[%clk 0:03:00.6]} 5. Qc2 {[%clk 0:02:56.2]}
5... Nbd7 {[%clk 0:03:00.3]} 6. b3 {[%clk 0:02:55.7]} 6... Bd6 {[%clk
0:02:57.6]} 7. Bb2 {[%clk 0:02:53.9]} 7... O-O {[%clk 0:02:56.6]} 8. Nbd2 {[%clk
0:02:53.6]} 8... Qe7 {[%clk 0:02:56.5]} 9. Bd3 {[%clk 0:02:44.8]} 9... e5 {[%clk
0:02:55.5]} 10. dxe5 {[%clk 0:02:42.9]} 10... Nxe5 {[%clk 0:02:56.4]} 11. Nxe5
{[%clk 0:02:42.4]} 11... Bxe5 {[%clk 0:02:57.3]} 12. Bxe5 {[%clk 0:02:38.6]}
12... Qxe5 {[%clk 0:02:58.2]} 13. O-O {[%clk 0:02:36.8]} 13... h6 {[%clk
0:02:43]} 14. Rae1 {[%clk 0:02:30.3]} 14... Bd7 {[%clk 0:02:35.9]} 15. f4 {[%clk
0:02:24.2]} 15... Qe7 {[%clk 0:02:26.3]} 16. e4 {[%clk 0:02:15.4]} 16... dxe4
{[%clk 0:02:24.2]} 17. Nxe4 {[%clk 0:02:15]} 17... Nxe4 {[%clk 0:02:24]} 18.
Bxe4 {[%clk 0:02:10.8]} 18... Qc5+ {[%clk 0:02:23]} 19. Qf2 {[%clk 0:02:05.8]}
19... Qxf2+ {[%clk 0:02:22.8]} 20. Kxf2 {[%clk 0:02:05.7]} 20... Rfe8 {[%clk
0:02:23.1]} 21. Bf3 {[%clk 0:01:59.8]} 21... Kf8 {[%clk 0:02:17]} 22. Rd1 {[%clk
0:01:55.9]} 22... Be6 {[%clk 0:02:11.1]} 23. Rd2 {[%clk 0:01:51]} 23... Rad8
{[%clk 0:02:10]} 24. Rfd1 {[%clk 0:01:50.4]} 24... Rxd2+ {[%clk 0:02:08.6]} 25.
Rxd2 {[%clk 0:01:50.2]} 25... Ke7 {[%clk 0:02:09.3]} 26. g4 {[%clk 0:01:46.2]}
26... Rd8 {[%clk 0:01:59]} 27. Rxd8 {[%clk 0:01:41]} 27... Kxd8 {[%clk
0:01:58.9]} 28. f5 {[%clk 0:01:39.3]} 28... Bd7 {[%clk 0:01:52.2]} 29. Ke3
{[%clk 0:01:39.2]} 29... Ke7 {[%clk 0:01:48.7]} 30. h4 {[%clk 0:01:17.3]} 30...
b6 {[%clk 0:01:47.4]} 31. Kf4 {[%clk 0:01:10.9]} 31... Kd6 {[%clk 0:01:47]} 32.
b4 {[%clk 0:01:09.5]} 32... a5 {[%clk 0:01:41.6]} 33. a3 {[%clk 0:01:08.5]}
33... c5 {[%clk 0:01:25.6]} 34. b5 {[%clk 0:01:04.6]} 34... f6 {[%clk
0:01:18.4]} 35. a4 {[%clk 0:01:00.4]} 35... Be8 {[%clk 0:01:15.6]} 36. Bd5
{[%clk 0:00:59.5]} 36... Bd7 {[%clk 0:01:13.6]} 37. g5 {[%clk 0:00:54]} 37...
hxg5+ {[%clk 0:01:12]} 38. hxg5 {[%clk 0:00:54]} 38... fxg5+ {[%clk 0:01:11.4]}
39. Kxg5 {[%clk 0:00:54.2]} 39... Ke5 {[%clk 0:01:11.8]} 40. Kg6 {[%clk
0:00:46.9]} 40... Bxf5+ {[%clk 0:01:11.5]} 41. Kxg7 {[%clk 0:00:47.1]} 41... Kd4
{[%clk 0:01:11.6]} 42. Kf6 {[%clk 0:00:45.2]} 42... Bd3 {[%clk 0:01:12.1]} 43.
Ke7 {[%clk 0:00:44.5]} 43... Bxc4 {[%clk 0:01:12.4]} 44. Bc6 {[%clk 0:00:37.6]}
44... Bb3 {[%clk 0:01:11.2]} 45. Kd6 {[%clk 0:00:37.4]} 45... c4 {[%clk
0:01:11.5]} 46. Be8 {[%clk 0:00:32.9]} 46... c3 {[%clk 0:01:09]} 47. Bg6 {[%clk
0:00:32.4]} 47... Bd5 {[%clk 0:00:56.7]} 48. Bc2 {[%clk 0:00:28.8]} 48... Kc4
{[%clk 0:00:55.8]} 49. Bg6 {[%clk 0:00:17.4]} 49... Bg2 {[%clk 0:00:52.6]} 50.
Kc7 {[%clk 0:00:14]} 50... Kb4 {[%clk 0:00:52.1]} 51. Kxb6 {[%clk 0:00:13.7]}
51... Kxa4 {[%clk 0:00:52.1]} 52. Bc2+ {[%clk 0:00:13.5]} 52... Kb4 {[%clk
0:00:51.7]} 53. Ka7 {[%clk 0:00:09.5]} 53... a4 {[%clk 0:00:51.2]} 54. b6 {[%clk
0:00:09]} 54... a3 {[%clk 0:00:51]} 55. b7 {[%clk 0:00:08.5]} 55... Bxb7 {[%clk
0:00:51]} 56. Kxb7 {[%clk 0:00:08.1]} 56... a2 {[%clk 0:00:51.9]} 57. Bb1 {[%clk
0:00:08]} 57... axb1=Q {[%clk 0:00:51.7]} 0-1

[Event "*** Titled Tuesday Blitz"]
[Site "Chess.com"]
[Date "2020.10.20"]
[Round "11"]
[White "PavelShkapenko"]
[Black "Shield12"]
[Result "0-1"]
[WhiteElo "2707"]
[BlackElo "2824"]
[TimeControl "180+1"]
[EndTime "12:09:09 PDT"]
[Termination "Shield12 won by resignation"]

1. e4 {[%clk 0:03:00.9]} 1... c5 {[%clk 0:03:00.7]} 2. c3 {[%clk 0:03:00.8]}
2... e5 {[%clk 0:03:00.7]} 3. Nf3 {[%clk 0:03:00.7]} 3... Nc6 {[%clk 0:03:01.4]}
4. Bc4 {[%clk 0:03:00.5]} 4... Be7 {[%clk 0:03:02]} 5. O-O {[%clk 0:03:00.7]}
5... Nf6 {[%clk 0:03:02.4]} 6. Re1 {[%clk 0:03:01]} 6... Nxe4 {[%clk 0:03:02.7]}
7. d3 {[%clk 0:03:01.5]} 7... Nf6 {[%clk 0:03:03.1]} 8. Nxe5 {[%clk 0:03:01.6]}
8... O-O {[%clk 0:03:03.2]} 9. Nxc6 {[%clk 0:02:55.2]} 9... dxc6 {[%clk
0:02:59.7]} 10. Nd2 {[%clk 0:02:54]} 10... Bf5 {[%clk 0:02:52.8]} 11. Qf3 {[%clk
0:02:52.2]} 11... Bg6 {[%clk 0:02:49.1]} 12. Ne4 {[%clk 0:02:49.3]} 12... Nd5
{[%clk 0:02:46.6]} 13. Ng3 {[%clk 0:02:48.5]} 13... Qd7 {[%clk 0:02:45.2]} 14.
Bxd5 {[%clk 0:02:20.2]} 14... cxd5 {[%clk 0:02:45.1]} 15. Bf4 {[%clk 0:02:20.3]}
15... Rfe8 {[%clk 0:02:43.7]} 16. Rad1 {[%clk 0:02:07.7]} 16... Rad8 {[%clk
0:02:42.7]} 17. h3 {[%clk 0:01:53.3]} 17... b6 {[%clk 0:02:40.6]} 18. a3 {[%clk
0:01:44.8]} 18... h6 {[%clk 0:02:37.9]} 19. Qg4 {[%clk 0:01:26.1]} 19... Kf8
{[%clk 0:02:13.3]} 20. Re5 {[%clk 0:01:04.7]} 20... Qxg4 {[%clk 0:01:48.7]} 21.
hxg4 {[%clk 0:01:03.8]} 21... Bf6 {[%clk 0:01:48.9]} 22. Rxe8+ {[%clk
0:01:00.4]} 22... Rxe8 {[%clk 0:01:49.1]} 23. Kf1 {[%clk 0:01:00.9]} 23... Re6
{[%clk 0:01:26.3]} 24. f3 {[%clk 0:00:58.3]} 24... Ke8 {[%clk 0:01:20.7]} 25.
Nf5 {[%clk 0:00:48.7]} 25... Kf8 {[%clk 0:01:10.2]} 26. d4 {[%clk 0:00:45.2]}
26... c4 {[%clk 0:00:56.6]} 27. Ne3 {[%clk 0:00:39.3]} 27... Bd3+ {[%clk
0:00:55.8]} 28. Kf2 {[%clk 0:00:39.5]} 28... Re8 {[%clk 0:00:33.6]} 29. Re1
{[%clk 0:00:29.7]} 29... Rd8 {[%clk 0:00:31.9]} 30. Be5 {[%clk 0:00:27.8]} 30...
Bh4+ {[%clk 0:00:28.4]} 31. Bg3 {[%clk 0:00:27.4]} 31... Be7 {[%clk 0:00:27.1]}
32. Nf5 {[%clk 0:00:22.3]} 32... Bxf5 {[%clk 0:00:26.6]} 33. gxf5 {[%clk
0:00:22.5]} 33... b5 {[%clk 0:00:25.7]} 34. Be5 {[%clk 0:00:22.1]} 34... a5
{[%clk 0:00:24.9]} 35. Bxg7+ {[%clk 0:00:21.7]} 35... Kxg7 {[%clk 0:00:22.4]}
36. Rxe7 {[%clk 0:00:22.3]} 36... b4 {[%clk 0:00:19.7]} 37. axb4 {[%clk
0:00:22.4]} 37... axb4 {[%clk 0:00:20.6]} 38. Rb7 {[%clk 0:00:14.1]} 38... b3
{[%clk 0:00:20.5]} 39. Ke3 {[%clk 0:00:13.5]} 39... Re8+ {[%clk 0:00:19.7]} 40.
Kd2 {[%clk 0:00:12.9]} 40... Ra8 {[%clk 0:00:19.5]} 41. Rb5 {[%clk 0:00:07.7]}
41... Ra2 {[%clk 0:00:19.8]} 42. Rxd5 {[%clk 0:00:07.6]} 42... Rxb2+ {[%clk
0:00:20.1]} 43. Ke3 {[%clk 0:00:08.2]} 43... Rc2 {[%clk 0:00:20.2]} 44. Rb5
{[%clk 0:00:06.9]} 44... Rxc3+ {[%clk 0:00:19.6]} 45. Ke4 {[%clk 0:00:07.4]}
45... Rc2 {[%clk 0:00:19.3]} 46. d5 {[%clk 0:00:07.9]} 46... b2 {[%clk
0:00:18.6]} 47. d6 {[%clk 0:00:07.7]} 47... c3 {[%clk 0:00:19.2]} 48. Kd3 {[%clk
0:00:06.9]} 48... Rc1 {[%clk 0:00:19]} 49. d7 {[%clk 0:00:07.4]} 49... b1=Q+
{[%clk 0:00:16.9]} 50. Rxb1 {[%clk 0:00:07.4]} 50... Rxb1 {[%clk 0:00:17.8]} 51.
f6+ {[%clk 0:00:06.6]} 51... Kg6 {[%clk 0:00:17.3]} 52. Kc2 {[%clk 0:00:06.6]}
52... Rb8 {[%clk 0:00:16.9]} 0-1

[Event "*** Titled Tuesday Blitz"]
[Site "Chess.com"]
[Date "2020.10.20"]
[Round "11"]
[White "GigaQuparadze"]
[Black "Gabrielian_Artur"]
[Result "1/2-1/2"]
[WhiteElo "2895"]
[BlackElo "2817"]
[TimeControl "180+1"]
[EndTime "12:09:12 PDT"]
[Termination "Game drawn - insufficient material"]

1. e4 {[%clk 0:03:00.9]} 1... c5 {[%clk 0:02:56.8]} 2. Nf3 {[%clk 0:03:00.3]}
2... d6 {[%clk 0:02:52.2]} 3. d4 {[%clk 0:03:00]} 3... cxd4 {[%clk 0:02:51.9]}
4. Nxd4 {[%clk 0:03:00.9]} 4... Nf6 {[%clk 0:02:51.4]} 5. Nc3 {[%clk 0:03:00.9]}
5... Nc6 {[%clk 0:02:51.6]} 6. Nb3 {[%clk 0:02:57.2]} 6... e6 {[%clk 0:02:45.9]}
7. g4 {[%clk 0:02:56.5]} 7... h6 {[%clk 0:02:28.7]} 8. Bg2 {[%clk 0:02:53.3]}
8... Be7 {[%clk 0:02:28.5]} 9. h4 {[%clk 0:02:51.8]} 9... d5 {[%clk 0:02:21.7]}
10. exd5 {[%clk 0:02:47.3]} 10... Nxd5 {[%clk 0:02:14]} 11. Nxd5 {[%clk
0:02:27.4]} 11... exd5 {[%clk 0:02:14.1]} 12. h5 {[%clk 0:02:24.4]} 12... O-O
{[%clk 0:02:08.4]} 13. Be3 {[%clk 0:02:05.3]} 13... Bf6 {[%clk 0:02:01.2]} 14.
c3 {[%clk 0:02:03.9]} 14... Re8 {[%clk 0:01:59.4]} 15. Bxd5 {[%clk 0:01:53.2]}
15... Ne5 {[%clk 0:01:54.9]} 16. Bf3 {[%clk 0:01:22.9]} 16... Qxd1+ {[%clk
0:01:29.7]} 17. Bxd1 {[%clk 0:01:23.8]} 17... Nxg4 {[%clk 0:01:28]} 18. Bxg4
{[%clk 0:01:14.4]} 18... Bxg4 {[%clk 0:01:28.9]} 19. Kd2 {[%clk 0:01:13.6]}
19... Re5 {[%clk 0:01:13.8]} 20. Rag1 {[%clk 0:01:10.6]} 20... Rxh5 {[%clk
0:00:57.6]} 21. Rxh5 {[%clk 0:01:04]} 21... Bxh5 {[%clk 0:00:57.7]} 22. Bxh6
{[%clk 0:01:01.2]} 22... Rd8+ {[%clk 0:00:56.3]} 23. Kc1 {[%clk 0:01:00.8]}
23... Bg6 {[%clk 0:00:50.4]} 24. Be3 {[%clk 0:01:00.6]} 24... b6 {[%clk
0:00:48.3]} 25. Bd4 {[%clk 0:00:58.7]} 25... Rd6 {[%clk 0:00:45.7]} 26. Rg4
{[%clk 0:00:49.7]} 26... a5 {[%clk 0:00:45.3]} 27. Bxf6 {[%clk 0:00:47.8]} 27...
Rxf6 {[%clk 0:00:45.1]} 28. f4 {[%clk 0:00:48]} 28... Bh5 {[%clk 0:00:41]} 29.
Rh4 {[%clk 0:00:47.8]} 29... g6 {[%clk 0:00:39.6]} 30. Nd4 {[%clk 0:00:47.8]}
30... Rd6 {[%clk 0:00:29.4]} 31. Kd2 {[%clk 0:00:47.9]} 31... Rd8 {[%clk
0:00:28]} 32. Rh1 {[%clk 0:00:45.7]} 32... Kg7 {[%clk 0:00:27.9]} 33. Re1 {[%clk
0:00:44.8]} 33... Kf6 {[%clk 0:00:27.5]} 34. Re5 {[%clk 0:00:43]} 34... Bg4
{[%clk 0:00:24.2]} 35. Rb5 {[%clk 0:00:42.1]} 35... Rd6 {[%clk 0:00:24.2]} 36.
Ke3 {[%clk 0:00:42]} 36... Bd7 {[%clk 0:00:23.7]} 37. Re5 {[%clk 0:00:41.9]}
37... Kg7 {[%clk 0:00:13.9]} 38. a3 {[%clk 0:00:40.6]} 38... Kf8 {[%clk
0:00:13.4]} 39. b4 {[%clk 0:00:40.6]} 39... f6 {[%clk 0:00:12.3]} 40. Re4 {[%clk
0:00:40.1]} 40... axb4 {[%clk 0:00:11.8]} 41. cxb4 {[%clk 0:00:38.1]} 41... Kf7
{[%clk 0:00:11.4]} 42. Ne2 {[%clk 0:00:33.5]} 42... Bc6 {[%clk 0:00:11.1]} 43.
Rd4 {[%clk 0:00:33.4]} 43... Re6+ {[%clk 0:00:11.5]} 44. Kd2 {[%clk 0:00:33.6]}
44... Bf3 {[%clk 0:00:11.1]} 45. Nc3 {[%clk 0:00:33.7]} 45... g5 {[%clk
0:00:11.6]} 46. fxg5 {[%clk 0:00:33.6]} 46... fxg5 {[%clk 0:00:12.1]} 47. a4
{[%clk 0:00:32.2]} 47... g4 {[%clk 0:00:12.5]} 48. a5 {[%clk 0:00:32.3]} 48...
bxa5 {[%clk 0:00:13]} 49. bxa5 {[%clk 0:00:33.2]} 49... g3 {[%clk 0:00:11.5]}
50. Rf4+ {[%clk 0:00:32.9]} 50... Rf6 {[%clk 0:00:11.3]} 51. Rxf6+ {[%clk
0:00:32.7]} 51... Kxf6 {[%clk 0:00:11.8]} 52. Ke3 {[%clk 0:00:33.2]} 52... Ba8
{[%clk 0:00:10.7]} 53. Ne2 {[%clk 0:00:25.7]} 53... g2 {[%clk 0:00:09.3]} 54.
Kf2 {[%clk 0:00:26]} 54... Ke7 {[%clk 0:00:09.7]} 55. Nf4 {[%clk 0:00:25.9]}
55... Kd7 {[%clk 0:00:09.9]} 56. Nxg2 {[%clk 0:00:26.4]} 56... Bxg2 {[%clk
0:00:09.3]} 57. Kxg2 {[%clk 0:00:26.5]} 57... Kc6 {[%clk 0:00:09.9]} 58. Kf3
{[%clk 0:00:27.4]} 58... Kb5 {[%clk 0:00:10]} 59. a6 {[%clk 0:00:28.3]} 59...
Kxa6 {[%clk 0:00:10.2]} 1/2-1/2

[Event "*** Titled Tuesday Blitz"]
[Site "Chess.com"]
[Date "2020.10.20"]
[Round "11"]
[White "tylityli"]
[Black "sbouchet"]
[Result "1/2-1/2"]
[WhiteElo "2249"]
[BlackElo "2399"]
[TimeControl "180+1"]
[EndTime "12:09:13 PDT"]
[Termination "Game drawn - insufficient material"]

1. d4 {[%clk 0:03:00.9]} 1... Nf6 {[%clk 0:02:59.1]} 2. c4 {[%clk 0:03:00.5]}
2... g6 {[%clk 0:02:59.2]} 3. Nc3 {[%clk 0:03:00.2]} 3... Bg7 {[%clk 0:02:59.2]}
4. e4 {[%clk 0:03:00.2]} 4... d6 {[%clk 0:02:59.4]} 5. Nge2 {[%clk 0:03:00.5]}
5... O-O {[%clk 0:02:59.6]} 6. Ng3 {[%clk 0:03:00.7]} 6... e5 {[%clk 0:02:42.8]}
7. d5 {[%clk 0:02:59.7]} 7... Nbd7 {[%clk 0:02:42.5]} 8. Be2 {[%clk 0:02:58.7]}
8... a5 {[%clk 0:02:41.8]} 9. O-O {[%clk 0:02:58.3]} 9... Nc5 {[%clk 0:02:41.4]}
10. Be3 {[%clk 0:02:55.6]} 10... Bd7 {[%clk 0:02:32.5]} 11. f3 {[%clk
0:02:52.7]} 11... Qe7 {[%clk 0:02:29.5]} 12. Qd2 {[%clk 0:02:52.8]} 12... Ne8
{[%clk 0:02:28.6]} 13. Bh6 {[%clk 0:02:51.4]} 13... f5 {[%clk 0:02:27.6]} 14.
Bxg7 {[%clk 0:02:45.3]} 14... Kxg7 {[%clk 0:02:26.8]} 15. exf5 {[%clk
0:02:40.6]} 15... gxf5 {[%clk 0:02:23.1]} 16. Nh5+ {[%clk 0:02:39.3]} 16... Kh8
{[%clk 0:02:11.2]} 17. f4 {[%clk 0:02:38.3]} 17... e4 {[%clk 0:02:06.9]} 18.
Qd4+ {[%clk 0:02:34.1]} 18... Kg8 {[%clk 0:02:05.2]} 19. Kh1 {[%clk 0:02:28.5]}
19... Ng7 {[%clk 0:01:57.8]} 20. Nxg7 {[%clk 0:02:14.6]} 20... Qxg7 {[%clk
0:01:56.9]} 21. Qxg7+ {[%clk 0:02:10.4]} 21... Kxg7 {[%clk 0:01:57.8]} 22. Rg1
{[%clk 0:02:05.5]} 22... Kf6 {[%clk 0:01:49.4]} 23. g4 {[%clk 0:02:03.8]} 23...
fxg4 {[%clk 0:01:49.2]} 24. Bxg4 {[%clk 0:02:03.6]} 24... Bxg4 {[%clk
0:01:49.2]} 25. Rxg4 {[%clk 0:02:03.9]} 25... Rg8 {[%clk 0:01:49.8]} 26. Rag1
{[%clk 0:02:01.7]} 26... Rg6 {[%clk 0:01:26.7]} 27. Nb5 {[%clk 0:01:48.4]} 27...
Nd3 {[%clk 0:01:01.4]} 28. Rxg6+ {[%clk 0:01:36.2]} 28... hxg6 {[%clk
0:01:00.8]} 29. Nxc7 {[%clk 0:01:34.8]} 29... Rc8 {[%clk 0:00:38.7]} 30. Nb5
{[%clk 0:01:30.6]} 30... Rxc4 {[%clk 0:00:39.2]} 31. Nxd6 {[%clk 0:01:30.2]}
31... Rd4 {[%clk 0:00:39]} 32. Ne8+ {[%clk 0:01:05]} 32... Kf5 {[%clk
0:00:33.5]} 33. Nd6+ {[%clk 0:01:02.9]} 33... Kxf4 {[%clk 0:00:28.3]} 34. Rxg6
{[%clk 0:01:00.3]} 34... Rxd5 {[%clk 0:00:26.4]} 35. Kg2 {[%clk 0:00:53.9]}
35... Ke3 {[%clk 0:00:25.1]} 36. Rg3+ {[%clk 0:00:48.7]} 36... Kd4 {[%clk
0:00:20.7]} 37. Nxb7 {[%clk 0:00:44.2]} 37... Rb5 {[%clk 0:00:20.3]} 38. Rg7
{[%clk 0:00:39.9]} 38... Rxb2+ {[%clk 0:00:19.1]} 39. Kg3 {[%clk 0:00:38.3]}
39... Rxa2 {[%clk 0:00:19.1]} 40. Rd7+ {[%clk 0:00:35.4]} 40... Ke3 {[%clk
0:00:19.3]} 41. h4 {[%clk 0:00:35]} 41... Ra1 {[%clk 0:00:18.9]} 42. h5 {[%clk
0:00:33.1]} 42... Rh1 {[%clk 0:00:19.1]} 43. Rd5 {[%clk 0:00:28.7]} 43... a4
{[%clk 0:00:16.4]} 44. Ra5 {[%clk 0:00:28.5]} 44... a3 {[%clk 0:00:14.7]} 45.
Nd6 {[%clk 0:00:27.1]} 45... a2 {[%clk 0:00:12.1]} 46. Rxa2 {[%clk 0:00:24.8]}
46... Rxh5 {[%clk 0:00:11.8]} 47. Ra4 {[%clk 0:00:23.4]} 47... Re5 {[%clk
0:00:08.7]} 48. Nc4+ {[%clk 0:00:21.9]} 48... Kd4 {[%clk 0:00:08.5]} 49. Nxe5+
{[%clk 0:00:20.9]} 49... Kxe5 {[%clk 0:00:09.1]} 50. Kg2 {[%clk 0:00:20]} 50...
Kf4 {[%clk 0:00:08.8]} 51. Rc4 {[%clk 0:00:17.7]} 51... Ke3 {[%clk 0:00:08.4]}
52. Kf1 {[%clk 0:00:15.9]} 52... Kf3 {[%clk 0:00:05.8]} 53. Rxe4 {[%clk
0:00:14.2]} 53... Kxe4 {[%clk 0:00:05.7]} 1/2-1/2